[Event "Titled Tuesday Blitz May 31 Early 2022"]
[White "Belenkaya, Dina"]
[Black "Agibileg, Uurtsaikh"]
[WhiteFideId "24142654"]
[BlackFideId "4901606"]
[WhiteElo "2196"]
[BlackElo "2205"]
[Result "0-1"]
[Round "05"]
[TimeControl "180+1"]
[Date "2022.06.01"]
[WhiteClock "0:00:07"]
[BlackClock "0:00:10"]

1. g3 {[%clk 0:02:58]}  Nf6 {[%clk 0:02:57]} 2. Nf3 {[%clk 0:02:59]}  g6 {[%clk 0:02:57]} 3. Bg2 {[%clk 0:03:00]}  Bg7 {[%clk 0:02:58]} 4. d3 {[%clk 0:02:59]}  c5 {[%clk 0:02:56]} 5. e4 {[%clk 0:02:59]}  d6 {[%clk 0:02:55]} 6. O-O {[%clk 0:02:59]}  e5 {[%clk 0:02:55]} 7. Nc3 {[%clk 0:02:58]}  O-O {[%clk 0:02:55]} 8. h3 {[%clk 0:02:54]}  h6 {[%clk 0:02:52]} 9. Be3 {[%clk 0:02:54]}  Be6 {[%clk 0:02:53]} 10. Qd2 {[%clk 0:02:54]}  Kh7 {[%clk 0:02:52]} 11. Nh2 {[%clk 0:02:54]}  Qd7 {[%clk 0:02:46]} 12. f4 {[%clk 0:02:50]}  Bxh3 {[%clk 0:02:31]} 13. f5 {[%clk 0:02:48]}  Bxg2 {[%clk 0:02:31]} 14. Kxg2 {[%clk 0:02:47]}  Nc6 {[%clk 0:02:29]} 15. g4 {[%clk 0:02:32]}  g5 {[%clk 0:02:14]} 16. Nd5 {[%clk 0:02:29]}  Nxd5 {[%clk 0:02:01]} 17. exd5 {[%clk 0:02:30]}  Nb4 {[%clk 0:01:52]} 18. f6 {[%clk 0:02:30]}  Bh8 {[%clk 0:01:47]} 19. c4 {[%clk 0:02:21]}  Rg8 {[%clk 0:01:42]} 20. a3 {[%clk 0:02:21]}  Na6 {[%clk 0:01:42]} 21. Rf5 {[%clk 0:02:20]}  Rg6 {[%clk 0:01:38]} 22. Raf1 {[%clk 0:02:10]}  Nc7 {[%clk 0:01:24]} 23. Qf2 {[%clk 0:01:20]}  Rag8 {[%clk 0:01:19]} 24. Qf3 {[%clk 0:01:19]}  Ne8 {[%clk 0:01:17]} 25. Qh3 {[%clk 0:01:08]}  Bxf6 {[%clk 0:01:06]} 26. Nf3 {[%clk 0:01:05]}  Kg7 {[%clk 0:00:52]} 27. Nd2 {[%clk 0:01:04]}  Rf8 {[%clk 0:00:37]} 28. Ne4 {[%clk 0:01:03]}  Bd8 {[%clk 0:00:37]} 29. b4 {[%clk 0:00:56]}  b6 {[%clk 0:00:34]} 30. Rh1 {[%clk 0:00:49]}  Nf6 {[%clk 0:00:15]} 31. Bxg5 {[%clk 0:00:24]}  Ng8 {[%clk 0:00:14]} 32. Bxd8 {[%clk 0:00:08]}  Qxf5 {[%clk 0:00:14]} 33. Be7 {[%clk 0:00:06]}  Qxg4+ {[%clk 0:00:09]} 34. Qxg4 {[%clk 0:00:06]}  Rxg4+ {[%clk 0:00:10]} 35. Kh3 {[%clk 0:00:06]}  Rg6 {[%clk 0:00:09]} 36. Bxf8+ {[%clk 0:00:03]}  Kxf8 {[%clk 0:00:10]} 37. Rf1 {[%clk 0:00:04]}  Ne7 {[%clk 0:00:06]} 38. Nf6 {[%clk 0:00:04]}  Kg7 {[%clk 0:00:04]} 39. Ne8+ {[%clk 0:00:02]}  Kf8 {[%clk 0:00:04]} 40. Nf6 {[%clk 0:00:03]}  Ng8 {[%clk 0:00:04]} 41. Nd7+ {[%clk 0:00:03]}  Ke7 {[%clk 0:00:05]} 42. Nb8 {[%clk 0:00:04]}  Kd8 {[%clk 0:00:04]} 43. Nc6+ {[%clk 0:00:05]}  Ke8 {[%clk 0:00:04]} 44. bxc5 {[%clk 0:00:06]}  bxc5 {[%clk 0:00:04]} 45. Rc1 {[%clk 0:00:06]}  Ne7 {[%clk 0:00:04]} 46. Rb1 {[%clk 0:00:04]}  Nxc6 {[%clk 0:00:02]} 47. dxc6 {[%clk 0:00:05]}  Kd8 {[%clk 0:00:03]} 48. Rb7 {[%clk 0:00:05]}  f5 {[%clk 0:00:03]} 49. Rd7+ {[%clk 0:00:06]}  Kc8 {[%clk 0:00:03]} 50. Rxa7 {[%clk 0:00:07]}  f4 {[%clk 0:00:03]} 51. Rf7 {[%clk 0:00:07]}  Rg3+ {[%clk 0:00:03]} 52. Kh4 {[%clk 0:00:07]}  Rxd3 {[%clk 0:00:04]} 53. a4 {[%clk 0:00:05]}  Ra3 {[%clk 0:00:04]} 54. Rd7 {[%clk 0:00:05]}  Rxa4 {[%clk 0:00:04]} 55. Rxd6 {[%clk 0:00:06]}  Kc7 {[%clk 0:00:02]} 56. Re6 {[%clk 0:00:05]}  Rxc4 {[%clk 0:00:03]} 57. Rxe5 {[%clk 0:00:05]}  Kxc6 {[%clk 0:00:04]} 58. Kg4 {[%clk 0:00:03]}  Rd4 {[%clk 0:00:05]} 59. Kf3 {[%clk 0:00:04]}  Kb5 {[%clk 0:00:05]} 60. Re6 {[%clk 0:00:04]}  Kb4 {[%clk 0:00:05]} 61. Rxh6 {[%clk 0:00:04]}  c4 {[%clk 0:00:05]} 62. Rb6+ {[%clk 0:00:05]}  Kc3 {[%clk 0:00:06]} 63. Rb8 {[%clk 0:00:04]}  Kd3 {[%clk 0:00:06]} 64. Rb1 {[%clk 0:00:04]}  c3 {[%clk 0:00:06]} 65. Rd1+ {[%clk 0:00:04]}  Kc4 {[%clk 0:00:07]} 66. Rc1 {[%clk 0:00:05]}  Kb3 {[%clk 0:00:06]} 67. Rb1+ {[%clk 0:00:05]}  Kc2 {[%clk 0:00:07]} 68. Rb8 {[%clk 0:00:04]}  Kd2 {[%clk 0:00:07]} 69. Kf2 {[%clk 0:00:02]}  c2 {[%clk 0:00:07]} 70. Rb2 {[%clk 0:00:02]}  Kc3 {[%clk 0:00:06]} 71. Ra2 {[%clk 0:00:02]}  c1=Q {[%clk 0:00:06]} 72. Kf3 {[%clk 0:00:02]}  Qf1+ {[%clk 0:00:05]} 73. Kg4 {[%clk 0:00:03]}  f3+ {[%clk 0:00:03]} 74. Kg3 {[%clk 0:00:03]}  Qg2+ {[%clk 0:00:04]} 75. Rxg2 {[%clk 0:00:01]}  fxg2 {[%clk 0:00:05]} 76. Kxg2 {[%clk 0:00:02]}  Kd3 {[%clk 0:00:05]} 77. Kf2 {[%clk 0:00:02]}  Re4 {[%clk 0:00:06]} 78. Kf3 {[%clk 0:00:03]}  Kd4 {[%clk 0:00:07]} 79. Kg3 {[%clk 0:00:04]}  Re3+ {[%clk 0:00:08]} 80. Kg2 {[%clk 0:00:05]}  Ke4 {[%clk 0:00:08]} 81. Kf2 {[%clk 0:00:06]}  Kf4 {[%clk 0:00:08]} 82. Kg2 {[%clk 0:00:07]}  Rf3 {[%clk 0:00:09]} 83. Kg1 {[%clk 0:00:07]}  Kg3 {[%clk 0:00:09]} 84. Kh1 {[%clk 0:00:07]}  Rf1# {[%clk 0:00:10]} 0-1


[Site "https://www.chess.com"]

[Event "Titled Tuesday Blitz May 31 Early 2022"]
[White "Darini, Pouria"]
[Black "Swiercz, Dariusz"]
[WhiteFideId "12502200"]
[BlackFideId "1126881"]
[WhiteElo "2483"]
[BlackElo "2627"]
[Result "1-0"]
[Round "05"]
[TimeControl "180+1"]
[Date "2022.05.31"]
[WhiteClock "0:00:06"]
[BlackClock "0:00:04"]

1. e4 {[%clk 0:02:51]}  c5 {[%clk 0:03:00]} 2. Nc3 {[%clk 0:02:44]}  Nc6 {[%clk 0:03:00]} 3. Bb5 {[%clk 0:02:43]}  Nd4 {[%clk 0:02:59]} 4. Nf3 {[%clk 0:02:43]}  a6 {[%clk 0:02:58]} 5. Bd3 {[%clk 0:02:42]}  Nc6 {[%clk 0:02:57]} 6. b3 {[%clk 0:02:42]}  e6 {[%clk 0:02:56]} 7. Bb2 {[%clk 0:02:42]}  Qc7 {[%clk 0:02:46]} 8. O-O {[%clk 0:02:40]}  Nf6 {[%clk 0:02:41]} 9. Re1 {[%clk 0:02:35]}  Bd6 {[%clk 0:02:32]} 10. Ne2 {[%clk 0:02:21]}  O-O {[%clk 0:02:07]} 11. Ng3 {[%clk 0:02:08]}  Ne5 {[%clk 0:02:00]} 12. Bf1 {[%clk 0:01:57]}  b5 {[%clk 0:01:37]} 13. Nxe5 {[%clk 0:01:48]}  Bxe5 {[%clk 0:01:37]} 14. Bxe5 {[%clk 0:01:47]}  Qxe5 {[%clk 0:01:37]} 15. c3 {[%clk 0:01:48]}  Bb7 {[%clk 0:01:31]} 16. d4 {[%clk 0:01:49]}  cxd4 {[%clk 0:01:32]} 17. cxd4 {[%clk 0:01:49]}  Qf4 {[%clk 0:01:10]} 18. f3 {[%clk 0:00:52]}  d6 {[%clk 0:00:52]} 19. Qc1 {[%clk 0:00:49]}  Qxc1 {[%clk 0:00:50]} 20. Rexc1 {[%clk 0:00:50]}  Rfc8 {[%clk 0:00:50]} 21. Kf2 {[%clk 0:00:43]}  Kf8 {[%clk 0:00:50]} 22. Ke3 {[%clk 0:00:43]}  Ke7 {[%clk 0:00:51]} 23. b4 {[%clk 0:00:33]}  Bc6 {[%clk 0:00:43]} 24. Rc3 {[%clk 0:00:26]}  Bd7 {[%clk 0:00:43]} 25. Rxc8 {[%clk 0:00:22]}  Rxc8 {[%clk 0:00:42]} 26. Kd2 {[%clk 0:00:23]}  g5 {[%clk 0:00:32]} 27. Bd3 {[%clk 0:00:20]}  h5 {[%clk 0:00:29]} 28. Ne2 {[%clk 0:00:20]}  h4 {[%clk 0:00:21]} 29. Rc1 {[%clk 0:00:18]}  Rxc1 {[%clk 0:00:18]} 30. Kxc1 {[%clk 0:00:19]}  e5 {[%clk 0:00:17]} 31. Kd2 {[%clk 0:00:15]}  Nh5 {[%clk 0:00:17]} 32. g3 {[%clk 0:00:14]}  Ng7 {[%clk 0:00:11]} 33. g4 {[%clk 0:00:13]}  Ne6 {[%clk 0:00:11]} 34. d5 {[%clk 0:00:11]}  Nf8 {[%clk 0:00:06]} 35. Nc3 {[%clk 0:00:11]}  Ng6 {[%clk 0:00:06]} 36. a4 {[%clk 0:00:09]}  bxa4 {[%clk 0:00:05]} 37. Bxa6 {[%clk 0:00:10]}  Kd8 {[%clk 0:00:05]} 38. b5 {[%clk 0:00:04]}  h3 {[%clk 0:00:02]} 39. Nxa4 {[%clk 0:00:04]}  Nh4 {[%clk 0:00:02]} 40. Ke3 {[%clk 0:00:04]}  Ng2+ {[%clk 0:00:02]} 41. Kf2 {[%clk 0:00:05]}  Nf4 {[%clk 0:00:03]} 42. Nb2 {[%clk 0:00:05]}  Kc7 {[%clk 0:00:02]} 43. Nc4 {[%clk 0:00:06]}  Nd3+ {[%clk 0:00:03]} 44. Ke3 {[%clk 0:00:06]}  Nb4 {[%clk 0:00:03]} 45. b6+ {[%clk 0:00:07]}  Kb8 {[%clk 0:00:03]} 46. Nxd6 {[%clk 0:00:05]}  Nxa6 {[%clk 0:00:04]} 47. Nxf7 {[%clk 0:00:06]}  Kb7 {[%clk 0:00:04]} 48. Nxe5 {[%clk 0:00:06]}  Nb8 {[%clk 0:00:05]} 49. Nf7 {[%clk 0:00:05]}  Kxb6 {[%clk 0:00:05]} 50. Nxg5 {[%clk 0:00:06]}  Kc5 {[%clk 0:00:06]} 51. Nxh3 {[%clk 0:00:06]}  Kd6 {[%clk 0:00:07]} 52. Nf4 {[%clk 0:00:07]}  Ke5 {[%clk 0:00:07]} 53. Nd3+ {[%clk 0:00:07]}  Kd6 {[%clk 0:00:08]} 54. h4 {[%clk 0:00:07]}  Be8 {[%clk 0:00:08]} 55. Kd4 {[%clk 0:00:08]}  Nd7 {[%clk 0:00:09]} 56. h5 {[%clk 0:00:08]}  Ke7 {[%clk 0:00:10]} 57. e5 {[%clk 0:00:08]}  Nf8 {[%clk 0:00:11]} 58. Nf4 {[%clk 0:00:08]}  Nh7 {[%clk 0:00:11]} 59. d6+ {[%clk 0:00:08]}  Kd7 {[%clk 0:00:11]} 60. Kd5 {[%clk 0:00:07]}  Ng5 {[%clk 0:00:12]} 61. e6+ {[%clk 0:00:07]}  Nxe6 {[%clk 0:00:12]} 62. Nxe6 {[%clk 0:00:07]}  Bf7 {[%clk 0:00:13]} 63. Ke5 {[%clk 0:00:04]}  Bxe6 {[%clk 0:00:14]} 64. h6 {[%clk 0:00:05]}  Bg8 {[%clk 0:00:14]} 65. g5 {[%clk 0:00:05]}  Bh7 {[%clk 0:00:15]} 66. f4 {[%clk 0:00:06]}  Bc2 {[%clk 0:00:14]} 67. f5 {[%clk 0:00:06]}  Bd3 {[%clk 0:00:04]} 68. h7 {[%clk 0:00:06]} 1-0


[Site "https://www.chess.com"]

[Event "Titled Tuesday Blitz May 31 Early 2022"]
[White "Donchenko, Alexander"]
[Black "Korchmar, Vasiliy"]
[WhiteFideId "24603295"]
[BlackFideId "24131750"]
[WhiteElo "2572"]
[BlackElo "2370"]
[Result "1-0"]
[Round "05"]
[TimeControl "180+1"]
[Date "2022.05.31"]
[WhiteClock "0:02:12"]
[BlackClock "0:01:04"]

1. d4 {[%clk 0:03:00]}  d5 {[%clk 0:02:59]} 2. c4 {[%clk 0:03:01]}  c6 {[%clk 0:03:00]} 3. Nf3 {[%clk 0:03:01]}  Nf6 {[%clk 0:03:00]} 4. Qc2 {[%clk 0:03:01]}  g6 {[%clk 0:02:42]} 5. cxd5 {[%clk 0:03:01]}  cxd5 {[%clk 0:02:40]} 6. Nc3 {[%clk 0:03:01]}  Bg7 {[%clk 0:02:39]} 7. Bf4 {[%clk 0:03:02]}  O-O {[%clk 0:02:36]} 8. e3 {[%clk 0:03:02]}  Nc6 {[%clk 0:02:34]} 9. Be2 {[%clk 0:03:02]}  Bf5 {[%clk 0:02:29]} 10. Qb3 {[%clk 0:03:03]}  Na5 {[%clk 0:02:28]} 11. Qb4 {[%clk 0:03:03]}  Rc8 {[%clk 0:02:23]} 12. O-O {[%clk 0:03:02]}  Ne4 {[%clk 0:02:14]} 13. Rfc1 {[%clk 0:02:48]}  Nxc3 {[%clk 0:02:02]} 14. Rxc3 {[%clk 0:02:47]}  Rxc3 {[%clk 0:02:01]} 15. Qxc3 {[%clk 0:02:47]}  Qb6 {[%clk 0:02:00]} 16. Bc7 {[%clk 0:02:45]}  Rc8 {[%clk 0:01:22]} 17. Bxb6 {[%clk 0:02:42]}  Rxc3 {[%clk 0:01:23]} 18. Bxa5 {[%clk 0:02:32]}  Rc2 {[%clk 0:01:23]} 19. Bd1 {[%clk 0:02:25]}  Rxb2 {[%clk 0:01:23]} 20. Bc3 {[%clk 0:02:24]}  Rb1 {[%clk 0:01:22]} 21. Rxb1 {[%clk 0:02:24]}  Bxb1 {[%clk 0:01:23]} 22. Bb3 {[%clk 0:02:23]}  e6 {[%clk 0:01:22]} 23. Bb4 {[%clk 0:02:21]}  b6 {[%clk 0:01:22]} 24. Kf1 {[%clk 0:02:19]}  a5 {[%clk 0:01:23]} 25. Bd6 {[%clk 0:02:18]}  b5 {[%clk 0:01:22]} 26. Nd2 {[%clk 0:02:15]}  Bd3+ {[%clk 0:01:20]} 27. Ke1 {[%clk 0:02:16]}  a4 {[%clk 0:01:18]} 28. Bd1 {[%clk 0:02:16]}  Bc4 {[%clk 0:01:01]} 29. Nxc4 {[%clk 0:02:13]}  dxc4 {[%clk 0:01:02]} 30. Kd2 {[%clk 0:02:13]}  Bf8 {[%clk 0:01:03]} 31. Bxf8 {[%clk 0:02:12]}  Kxf8 {[%clk 0:01:04]} 32. Kc3 {[%clk 0:02:12]} 1-0


[Site "https://www.chess.com"]

[Event "Titled Tuesday Blitz May 31 Early 2022"]
[White "Girsh, Daniel"]
[Black "Oparin, Grigoriy"]
[WhiteFideId "30949190"]
[BlackFideId "24125890"]
[WhiteElo "2469"]
[BlackElo "2665"]
[Result "0-1"]
[Round "05"]
[TimeControl "180+1"]
[Date "2022.05.31"]
[WhiteClock "0:00:20"]
[BlackClock "0:01:20"]

1. d4 {[%clk 0:03:00]}  e6 {[%clk 0:03:00]} 2. c4 {[%clk 0:02:57]}  b6 {[%clk 0:03:00]} 3. Nc3 {[%clk 0:02:57]}  Bb7 {[%clk 0:03:01]} 4. e4 {[%clk 0:02:55]}  Bb4 {[%clk 0:03:00]} 5. Qc2 {[%clk 0:02:55]}  Qh4 {[%clk 0:02:56]} 6. Bd3 {[%clk 0:02:51]}  Nf6 {[%clk 0:02:52]} 7. g3 {[%clk 0:02:44]}  Qh5 {[%clk 0:02:43]} 8. f3 {[%clk 0:02:43]}  Nc6 {[%clk 0:02:38]} 9. Be3 {[%clk 0:02:43]}  e5 {[%clk 0:02:38]} 10. dxe5 {[%clk 0:02:29]}  Qxe5 {[%clk 0:02:39]} 11. Ne2 {[%clk 0:02:26]}  O-O {[%clk 0:02:36]} 12. O-O {[%clk 0:02:21]}  Bc5 {[%clk 0:02:35]} 13. Qd2 {[%clk 0:02:21]}  Rfe8 {[%clk 0:02:24]} 14. Rae1 {[%clk 0:02:12]}  Rad8 {[%clk 0:02:24]} 15. Nf4 {[%clk 0:01:59]}  Bxe3+ {[%clk 0:02:15]} 16. Qxe3 {[%clk 0:01:59]}  Nd4 {[%clk 0:02:15]} 17. Nfd5 {[%clk 0:01:51]}  Bxd5 {[%clk 0:02:00]} 18. cxd5 {[%clk 0:01:51]}  c5 {[%clk 0:02:00]} 19. f4 {[%clk 0:01:45]}  Qh5 {[%clk 0:02:00]} 20. Qf2 {[%clk 0:01:37]}  d6 {[%clk 0:01:55]} 21. Qg2 {[%clk 0:01:27]}  Re7 {[%clk 0:01:54]} 22. h3 {[%clk 0:01:16]}  Rde8 {[%clk 0:01:55]} 23. g4 {[%clk 0:01:17]}  Qh4 {[%clk 0:01:55]} 24. g5 {[%clk 0:01:02]}  Nh5 {[%clk 0:01:38]} 25. Qg4 {[%clk 0:00:58]}  Qg3+ {[%clk 0:01:29]} 26. Qxg3 {[%clk 0:00:55]}  Nxg3 {[%clk 0:01:30]} 27. Re3 {[%clk 0:00:51]}  Nxf1 {[%clk 0:01:28]} 28. Kxf1 {[%clk 0:00:48]}  f5 {[%clk 0:01:26]} 29. gxf6 {[%clk 0:00:47]}  gxf6 {[%clk 0:01:26]} 30. Kf2 {[%clk 0:00:42]}  Rg7 {[%clk 0:01:25]} 31. Bb5 {[%clk 0:00:32]}  Rf8 {[%clk 0:01:20]} 32. Bc6 {[%clk 0:00:28]}  Kh8 {[%clk 0:01:18]} 33. Nb5 {[%clk 0:00:28]}  Nxb5 {[%clk 0:01:18]} 34. Bxb5 {[%clk 0:00:28]}  Rfg8 {[%clk 0:01:19]} 35. Rf3 {[%clk 0:00:28]}  Rg2+ {[%clk 0:01:19]} 36. Ke3 {[%clk 0:00:29]}  Rxb2 {[%clk 0:01:19]} 37. Bc6 {[%clk 0:00:28]}  Rxa2 {[%clk 0:01:19]} 38. e5 {[%clk 0:00:28]}  Ra3+ {[%clk 0:01:18]} 39. Ke4 {[%clk 0:00:28]}  f5+ {[%clk 0:01:18]} 40. Kxf5 {[%clk 0:00:27]}  Rxf3 {[%clk 0:01:19]} 41. exd6 {[%clk 0:00:23]}  Re3 {[%clk 0:01:19]} 42. d7 {[%clk 0:00:23]}  Rd8 {[%clk 0:01:20]} 43. Kf6 {[%clk 0:00:23]}  c4 {[%clk 0:01:20]} 44. d6 {[%clk 0:00:21]}  c3 {[%clk 0:01:21]} 45. Be4 {[%clk 0:00:20]}  Rxe4 {[%clk 0:01:20]} 0-1


[Site "https://www.chess.com"]

[Event "Titled Tuesday Blitz May 31 Early 2022"]
[White "Gunina, Valentina"]
[Black "Vidit, Santosh Gujrathi"]
[WhiteFideId "4167570"]
[BlackFideId "5029465"]
[WhiteElo "2381"]
[BlackElo "2654"]
[Result "1-0"]
[Round "05"]
[TimeControl "180+1"]
[Date "2022.05.31"]
[WhiteClock "0:00:17"]
[BlackClock "0:00:13"]

1. d4 {[%clk 0:03:00]}  e6 {[%clk 0:02:58]} 2. c4 {[%clk 0:02:52]}  f5 {[%clk 0:02:57]} 3. Nf3 {[%clk 0:02:48]}  Nf6 {[%clk 0:02:57]} 4. e3 {[%clk 0:02:46]}  b6 {[%clk 0:02:57]} 5. Be2 {[%clk 0:02:46]}  Bb7 {[%clk 0:02:57]} 6. Nc3 {[%clk 0:02:45]}  g6 {[%clk 0:02:56]} 7. O-O {[%clk 0:02:45]}  Bg7 {[%clk 0:02:57]} 8. b4 {[%clk 0:02:44]}  O-O {[%clk 0:02:57]} 9. Bb2 {[%clk 0:02:45]}  d6 {[%clk 0:02:56]} 10. d5 {[%clk 0:02:41]}  exd5 {[%clk 0:02:51]} 11. cxd5 {[%clk 0:02:26]}  Ne4 {[%clk 0:02:41]} 12. Qb3 {[%clk 0:02:11]}  Nd7 {[%clk 0:02:23]} 13. Nxe4 {[%clk 0:02:07]}  Bxb2 {[%clk 0:02:20]} 14. Nxd6 {[%clk 0:01:58]}  Bxa1 {[%clk 0:02:19]} 15. Nxb7 {[%clk 0:01:58]}  Qf6 {[%clk 0:02:17]} 16. d6+ {[%clk 0:01:59]}  Kg7 {[%clk 0:02:12]} 17. dxc7 {[%clk 0:01:58]}  Rac8 {[%clk 0:02:10]} 18. Nd8 {[%clk 0:01:58]}  Re8 {[%clk 0:02:05]} 19. Rc1 {[%clk 0:01:43]}  Rexd8 {[%clk 0:01:55]} 20. Ba6 {[%clk 0:01:43]}  Ne5 {[%clk 0:01:06]} 21. cxd8=Q {[%clk 0:01:39]}  Rxc1+ {[%clk 0:01:01]} 22. Qdd1 {[%clk 0:01:39]}  Nxf3+ {[%clk 0:00:46]} 23. gxf3 {[%clk 0:01:39]}  Rxd1+ {[%clk 0:00:44]} 24. Qxd1 {[%clk 0:01:39]}  Kh6 {[%clk 0:00:44]} 25. f4 {[%clk 0:01:28]}  Bc3 {[%clk 0:00:44]} 26. a3 {[%clk 0:01:21]}  Qc6 {[%clk 0:00:43]} 27. Be2 {[%clk 0:01:12]}  Bb2 {[%clk 0:00:43]} 28. Qd8 {[%clk 0:01:12]}  Bf6 {[%clk 0:00:31]} 29. Qb8 {[%clk 0:00:59]}  Qc1+ {[%clk 0:00:20]} 30. Kg2 {[%clk 0:00:59]}  Qxa3 {[%clk 0:00:20]} 31. Qf8+ {[%clk 0:00:59]}  Bg7 {[%clk 0:00:20]} 32. Qe7 {[%clk 0:00:59]}  Bc3 {[%clk 0:00:20]} 33. Qf8+ {[%clk 0:00:24]}  Bg7 {[%clk 0:00:20]} 34. Qd8 {[%clk 0:00:25]}  Bc3 {[%clk 0:00:20]} 35. Bc4 {[%clk 0:00:20]}  Qxb4 {[%clk 0:00:19]} 36. Bg8 {[%clk 0:00:20]}  Qe4+ {[%clk 0:00:17]} 37. Kg3 {[%clk 0:00:20]}  Kg7 {[%clk 0:00:15]} 38. Bd5 {[%clk 0:00:18]}  Bf6 {[%clk 0:00:13]} 39. Qg8+ {[%clk 0:00:17]} 1-0


[Site "https://www.chess.com"]

[Event "Titled Tuesday Blitz May 31 Early 2022"]
[White "Harsha Bharathakoti"]
[Black "Ning, Kaiyu"]
[WhiteFideId "5078776"]
[BlackFideId "8614750"]
[WhiteElo "2575"]
[BlackElo "2013"]
[Result "1-0"]
[Round "05"]
[TimeControl "180+1"]
[Date "2022.05.31"]
[WhiteClock "0:00:44"]
[BlackClock "0:00:01"]

1. Nf3 {[%clk 0:03:00]}  d5 {[%clk 0:02:57]} 2. b3 {[%clk 0:03:01]}  Bf5 {[%clk 0:02:55]} 3. Bb2 {[%clk 0:03:00]}  e6 {[%clk 0:02:56]} 4. g3 {[%clk 0:02:56]}  h6 {[%clk 0:02:55]} 5. Bg2 {[%clk 0:02:54]}  Nf6 {[%clk 0:02:56]} 6. O-O {[%clk 0:02:54]}  Be7 {[%clk 0:02:57]} 7. c4 {[%clk 0:02:53]}  O-O {[%clk 0:02:56]} 8. d3 {[%clk 0:02:42]}  a5 {[%clk 0:02:55]} 9. Nc3 {[%clk 0:02:40]}  c6 {[%clk 0:02:52]} 10. Rc1 {[%clk 0:02:21]}  d4 {[%clk 0:02:52]} 11. Nb1 {[%clk 0:02:06]}  c5 {[%clk 0:02:51]} 12. Nbd2 {[%clk 0:02:05]}  a4 {[%clk 0:02:49]} 13. bxa4 {[%clk 0:02:04]}  Nc6 {[%clk 0:02:45]} 14. Rb1 {[%clk 0:02:04]}  Qa5 {[%clk 0:02:36]} 15. Bc1 {[%clk 0:01:59]}  Ra7 {[%clk 0:02:28]} 16. Rb5 {[%clk 0:01:54]}  Qc7 {[%clk 0:02:17]} 17. Nb3 {[%clk 0:01:51]}  b6 {[%clk 0:02:01]} 18. Bd2 {[%clk 0:01:43]}  e5 {[%clk 0:01:51]} 19. a5 {[%clk 0:01:37]}  Nxa5 {[%clk 0:01:48]} 20. Bxa5 {[%clk 0:01:28]}  bxa5 {[%clk 0:01:49]} 21. a4 {[%clk 0:01:28]}  Bd7 {[%clk 0:01:47]} 22. Nfd2 {[%clk 0:01:28]}  Bxb5 {[%clk 0:01:35]} 23. cxb5 {[%clk 0:01:29]}  Nd7 {[%clk 0:01:35]} 24. Nc4 {[%clk 0:01:29]}  Nb6 {[%clk 0:01:35]} 25. Nbd2 {[%clk 0:01:30]}  f5 {[%clk 0:01:28]} 26. Nxb6 {[%clk 0:01:27]}  Qxb6 {[%clk 0:01:28]} 27. Nc4 {[%clk 0:01:26]}  Qb8 {[%clk 0:01:28]} 28. Qb3 {[%clk 0:01:24]}  Kh8 {[%clk 0:01:28]} 29. b6 {[%clk 0:01:24]}  Rd7 {[%clk 0:01:10]} 30. Qb5 {[%clk 0:01:17]}  Rd6 {[%clk 0:00:14]} 31. Qxa5 {[%clk 0:01:07]}  e4 {[%clk 0:00:13]} 32. Qb5 {[%clk 0:01:00]}  Rg6 {[%clk 0:00:06]} 33. a5 {[%clk 0:00:56]}  exd3 {[%clk 0:00:04]} 34. exd3 {[%clk 0:00:56]}  f4 {[%clk 0:00:05]} 35. a6 {[%clk 0:00:56]}  fxg3 {[%clk 0:00:05]} 36. hxg3 {[%clk 0:00:45]}  Bd8 {[%clk 0:00:03]} 37. a7 {[%clk 0:00:45]}  Rxb6 {[%clk 0:00:02]} 38. axb8=Q {[%clk 0:00:45]}  Rxb5 {[%clk 0:00:01]} 39. Qxb5 {[%clk 0:00:44]} 1-0


[Site "https://www.chess.com"]